bitfinex/quotes_BTCUSD_20251219
["timestamp","ask_amount","ask_price","bid_price","bid_amount"]
[1766119788549,0.01146315,87236.0,87220.0,0.117]
[1766119788695,0.01146328,87235.0,87220.0,0.117]
[1766119788899,0.13588342,87234.0,87221.0,0.00576]
[1766119789406,0.01146355,87233.0,87221.0,0.00576]
[1766119789565,0.13588368,87232.0,87221.0,0.00576]
[1766119789781,0.13588407,87229.0,87206.0,0.0114671]
[1766119789974,0.001099,87221.0,87208.0,0.04592]
[1766119790170,0.05504556,87227.0,87214.0,0.22931909]
[1766119790425,0.05504556,87227.0,87215.0,0.13422591]
[1766119790777,0.05504556,87227.0,87215.0,0.12276]
[1766119790972,0.12442,87228.0,87216.0,0.12846578]
[1766119791175,0.00576,87231.0,87216.0,0.12846578]
[1766119791425,0.00576,87231.0,87216.0,0.34631447]
[1766119791625,0.00576,87231.0,87217.0,0.00576]
[1766119791921,0.00576,87231.0,87218.0,0.117]
[1766119792336,0.00576,87231.0,87218.0,0.12276]
[1766119792884,0.13018,87231.0,87218.0,0.00576]
[1766119793117,0.24565,87231.0,87218.0,0.00576]
[1766119793294,0.12442,87230.0,87218.0,0.00576]
[1766119793702,0.13588434,87227.0,87218.0,0.00576]
[1766119793906,0.12442,87227.0,87218.0,0.00576]
[1766119794132,0.13588447,87226.0,87218.0,0.00576]
[1766119794537,0.01146473,87224.0,87209.0,0.117]
[1766119794733,0.17946556,87226.0,87210.0,0.00576]
[1766119794734,0.24075393,87226.0,87210.0,0.00576]
[1766119794977,0.12442,87225.0,87210.0,0.00576]
[1766119795963,0.12442,87222.0,87210.0,0.00576]
[1766119797562,0.12442,87222.0,87209.0,0.117]
[1766119797764,0.12442,87222.0,87210.0,0.00576]
[1766119797765,0.22930036,87222.0,87210.0,0.00576]
[1766119797970,0.12442,87220.0,87206.0,0.00010955]
[1766119798289,0.12442,87220.0,87207.0,0.00576]
[1766119798470,0.01146539,87219.0,87207.0,0.00576]
[1766119798670,0.12442,87220.0,87207.0,0.00576]
[1766119798876,0.12442,87220.0,87208.0,0.00576]
[1766119800310,0.01146644,87211.0,87206.0,0.00010955]
[1766119800523,0.001099,87208.0,87206.0,0.00010955]
[1766119800978,0.00576,87220.0,87211.0,0.12846644]
[1766119801158,0.12482,87240.0,87221.0,0.01146512]
[1766119801379,0.00576,87239.0,87224.0,0.117]
[1766119801536,0.01722276,87239.0,87224.0,0.117]
[1766119801860,0.12442,87238.0,87224.0,0.117]
[1766119802162,0.00576,87239.0,87230.0,0.117]
[1766119802378,0.0004,87240.0,87230.0,0.117]
[1766119803217,0.0004,87240.0,87229.0,0.12262]
[1766119803218,0.05504556,87239.0,87229.0,0.12262]
[1766119803633,0.00253576,87230.0,87227.0,0.00576]
[1766119803844,0.01146328,87235.0,87222.0,0.1228]
[1766119803998,0.12437,87232.0,87223.0,0.00576]
[1766119804196,0.1212,87231.0,87223.0,0.00576]
[1766119804403,0.1212,87231.0,87222.0,0.00576]
[1766119804815,0.1212,87230.0,87222.0,0.00576]
[1766119805222,0.01146407,87229.0,87212.0,0.1228]
[1766119805422,0.1212,87230.0,87217.0,0.00576]
[1766119809387,0.00247292,87228.0,87217.0,0.00576]
[1766119809607,0.1212,87230.0,87217.0,0.1183]
[1766119809815,0.00225295,87221.0,87217.0,0.1183]
[1766119810022,0.00115395,87221.0,87217.0,0.1183]
[1766119810245,3.95e-06,87221.0,87218.0,0.11254]
[1766119812239,3.95e-06,87221.0,87218.0,0.1431604]
[1766119812450,3.95e-06,87221.0,87218.0,0.15462592]
[1766119813100,3.95e-06,87221.0,87220.0,0.0306204]
[1766119814059,3.95e-06,87221.0,87220.0,0.0295214]
[1766119814267,3.95e-06,87221.0,87217.0,0.00576]
[1766119815048,3.95e-06,87221.0,87209.0,0.04110152]
[1766119815243,3.95e-06,87221.0,87210.0,0.00576]
[1766119818400,0.11431395,87221.0,87210.0,0.00576]
[1766119819044,0.11431,87220.0,87210.0,0.00576]
[1766119821516,3.95e-06,87221.0,87220.0,0.001099]
[1766119821861,3.95e-06,87221.0,87213.0,0.11254]
[1766119822612,0.22932316,87214.0,87197.0,0.06172284]
[1766119822825,0.11431,87211.0,87198.0,0.00576]
[1766119823875,0.00010949,87214.0,87211.0,0.001099]
[1766119824088,0.00010949,87214.0,87205.0,0.1183]
[1766119824758,0.00010949,87214.0,87205.0,0.00576]
[1766119824961,0.01146618,87213.0,87205.0,0.00576]
[1766119825167,0.11431,87213.0,87205.0,0.00576]
[1766119825595,0.00010949,87214.0,87205.0,0.00576]
[1766119826024,0.00010949,87214.0,87201.0,0.23504]
[1766119826239,0.00010949,87214.0,87205.0,0.00576]
[1766119826471,0.00010949,87214.0,87209.0,0.2293321]
[1766119826472,4.9e-07,87214.0,87209.0,0.2293321]
[1766119826690,4.9e-07,87214.0,87212.0,0.1225]
[1766119826903,4.9e-07,87214.0,87213.0,0.11254]
[1766119828381,4.9e-07,87214.0,87213.0,0.23504]
[1766119828582,3.95e-06,87221.0,87218.0,0.01146552]
[1766119828763,3.95e-06,87221.0,87217.0,0.01722565]
[1766119828974,3.95e-06,87221.0,87219.0,0.11254]
[1766119829177,0.11431,87237.0,87225.0,0.1225]
[1766119829395,0.00913015,87236.0,87226.0,0.11254]
[1766119829955,0.11437697,87237.0,87226.0,0.11254]
[1766119830386,0.01146355,87233.0,87224.0,0.00576]
[1766119830610,0.01146328,87235.0,87224.0,0.00576]
[1766119830783,0.01146342,87234.0,87224.0,0.00576]
[1766119830940,0.01146328,87235.0,87224.0,0.00576]
[1766119831381,0.24072725,87236.0,87224.0,0.00576]
[1766119831579,0.35510068,87237.0,87224.0,0.00576]
[1766119832251,0.01146328,87235.0,87224.0,0.00576]
[1766119832476,0.01146342,87234.0,87224.0,0.00576]
[1766119833922,0.24074232,87231.0,87224.0,0.00576]
[1766119834131,0.01146407,87229.0,87224.0,0.00576]
[1766119834304,0.24074357,87230.0,87224.0,0.00576]
[1766119834561,0.12577407,87229.0,87215.0,0.11254]
[1766119834762,0.24074357,87230.0,87200.0,0.90742987]
[1766119834763,0.11431,87220.0,87205.0,0.06172284]
[1766119834970,0.11431,87219.0,87208.0,0.00576]
[1766119835822,0.11793,87211.0,87197.0,0.06172284]
[1766119836026,0.11793,87207.0,87194.0,0.06172284]
[1766119836241,0.11793,87207.0,87197.0,0.00576]
[1766119836894,0.11793,87205.0,87197.0,0.00576]
[1766119837104,0.05504556,87209.0,87197.0,0.12901]
[1766119837327,7.53e-05,87205.0,87197.0,0.12901]
[1766119838822,7.53e-05,87205.0,87197.0,0.00576]
[1766119839256,7.53e-05,87205.0,87192.0,0.00576]
[1766119839257,0.11793,87203.0,87192.0,0.00576]
[1766119841905,0.11793,87203.0,87187.0,0.06172284]
[1766119841906,0.01146894,87192.0,87187.0,0.06172284]
[1766119842111,0.01147012,87183.0,87174.0,0.00576]
[1766119842316,0.11793,87185.0,87162.0,0.16464]
[1766119842317,0.17297556,87180.0,87162.0,0.25344288]
[1766119842539,0.86251903,87180.0,87163.0,0.24773]
[1766119842739,0.85104851,87180.0,87164.0,0.12325]
[1766119842961,0.85104851,87180.0,87165.0,0.12901]
[1766119843155,0.85104851,87180.0,87166.0,0.11872]
[1766119843156,0.79600295,87180.0,87166.0,0.11872]
[1766119843434,0.11793,87180.0,87167.0,0.12325]
[1766119845657,0.24662897,87185.0,87169.0,0.24197]
[1766119845863,0.01146999,87184.0,87169.0,0.24197]
[1766119846269,0.12369,87185.0,87169.0,0.24197]
[1766119846473,0.12369,87185.0,87170.0,0.2557362]
[1766119846688,0.01146999,87184.0,87171.0,0.12325]
[1766119847102,0.3645581,87185.0,87172.0,0.00576]
[1766119847702,0.13515986,87185.0,87172.0,0.00576]
[1766119848562,0.01146999,87184.0,87172.0,0.00576]
[1766119848761,0.36455714,87185.0,87172.0,0.00576]
[1766119848938,0.12369,87185.0,87172.0,0.00576]
[1766119849435,0.13515986,87185.0,87172.0,0.00576]
[1766119849599,0.12369,87185.0,87172.0,0.00576]
[1766119849965,0.13515986,87185.0,87172.0,0.00576]
[1766119850170,0.36455717,87185.0,87172.0,0.00576]
[1766119850407,0.13515986,87185.0,87172.0,0.00576]
[1766119850626,0.12369,87185.0,87172.0,0.12901]
[1766119851059,0.24087017,87184.0,87172.0,0.12901]
[1766119851491,0.12369,87185.0,87172.0,0.12901]
[1766119851916,0.13515986,87185.0,87172.0,0.12901]
[1766119852129,0.01146999,87184.0,87172.0,0.12901]
[1766119852555,0.36455902,87185.0,87172.0,0.12901]
[1766119853175,0.35308736,87185.0,87172.0,0.12901]
[1766119853586,0.13515986,87185.0,87172.0,0.12901]
[1766119853955,0.01146999,87184.0,87172.0,0.12901]
[1766119854178,0.13515986,87185.0,87172.0,0.12901]
[1766119854355,0.01146999,87184.0,87172.0,0.12901]
[1766119854685,0.01147012,87183.0,87172.0,0.12901]
[1766119854912,0.01147012,87183.0,87172.0,0.00576]
[1766119855070,0.01147025,87182.0,87172.0,0.00576]
[1766119855247,0.13515986,87185.0,87172.0,0.00576]
[1766119855456,0.01146999,87184.0,87172.0,0.00576]
[1766119856057,0.36455829,87185.0,87172.0,0.00576]
[1766119856058,0.12369,87185.0,87172.0,0.00576]
[1766119856299,0.12369,87185.0,87172.0,0.24773]
[1766119857161,0.12369,87185.0,87173.0,0.01147144]
[1766119857366,0.12369,87185.0,87173.0,0.24197]
[1766119857904,0.12369,87185.0,87172.0,0.00576]
[1766119858053,0.11793,87184.0,87172.0,0.12901]
[1766119858255,0.11793,87184.0,87172.0,0.24773]
[1766119859849,0.12939999,87184.0,87172.0,0.12448]
[1766119860062,0.11793,87180.0,87172.0,0.00576]
[1766119860489,0.17297556,87181.0,87163.0,0.11872]
[1766119860490,0.11793,87179.0,87163.0,0.11872]
[1766119860753,0.11793,87175.0,87164.0,0.00576]
[1766119861530,0.11793,87175.0,87164.0,0.12901]
[1766119862026,0.11793,87175.0,87164.0,0.12911949]
[1766119862684,0.11793,87175.0,87165.0,0.12325]
[1766119863961,0.017996,87191.0,87179.0,0.1245]
[1766119864163,0.017996,87191.0,87180.0,0.13026]
[1766119866580,0.12383,87194.0,87180.0,0.13026]
[1766119867113,0.00576,87193.0,87180.0,0.13026]
[1766119867868,0.05504556,87181.0,87152.0,0.06155594]
[1766119868074,0.05504556,87181.0,87150.0,0.67870562]
[1766119868075,0.23781,87175.0,87165.0,0.00576]
[1766119869538,0.12383,87175.0,87165.0,0.00576]
[1766119871968,0.122731,87175.0,87167.0,0.01147223]
[1766119872171,0.00576,87184.0,87168.0,0.00576]
[1766119872350,0.00576,87184.0,87170.0,0.11587]
[1766119873514,0.00576,87184.0,87170.0,0.12375]
[1766119873642,0.00576,87184.0,87171.0,0.11587]
[1766119874778,0.37046149,87184.0,87171.0,0.11587]
[1766119875144,0.39527421,87184.0,87171.0,0.11587]
[1766119875458,0.15440272,87184.0,87171.0,0.11587]
[1766119875778,0.12959,87184.0,87171.0,0.11587]
[1766119876889,0.15440272,87184.0,87171.0,0.11587]
[1766119877044,0.12959,87184.0,87171.0,0.11587]
[1766119878522,0.01147052,87180.0,87171.0,0.11587]
[1766119878829,0.05504556,87181.0,87164.0,0.00010949]
[1766119878830,0.00105546,87171.0,87164.0,0.00010949]
[1766119878961,0.23781,87175.0,87168.0,0.00576]
[1766119880986,0.12383,87174.0,87168.0,0.00576]
[1766119881613,0.001056,87168.0,87166.0,0.00576]
[1766119882048,0.12383,87171.0,87164.0,0.00010949]
[1766119882250,0.12383,87171.0,87165.0,0.00576]
[1766119882454,0.11798306,87171.0,87165.0,0.00576]
[1766119883121,0.11798306,87171.0,87164.0,0.00010949]
[1766119883322,0.11398,87178.0,87164.0,0.00010949]
[1766119883464,0.12545104,87176.0,87164.0,0.00010949]
[1766119883665,0.11398,87176.0,87164.0,0.00010949]
[1766119884089,0.01147078,87178.0,87164.0,0.00010949]
[1766119884283,0.01147117,87175.0,87164.0,0.00010949]
[1766119884601,0.00576,87179.0,87164.0,0.00010949]
[1766119884812,0.12383,87178.0,87164.0,0.00010949]
[1766119885014,0.12383,87177.0,87164.0,0.00010949]
[1766119886568,0.35325117,87176.0,87164.0,0.00010949]
[1766119886808,0.01147117,87175.0,87164.0,0.00010949]
[1766119887070,0.11398,87174.0,87164.0,0.00010949]
[1766119887382,0.01147183,87170.0,87160.0,0.00576]
[1766119887605,0.23781,87168.0,87160.0,0.00576]
[1766119888038,0.001056,87160.0,87154.0,0.00576]
[1766119888358,0.12383,87165.0,87154.0,0.00576]
[1766119888359,0.23781,87165.0,87154.0,0.00576]
[1766119889832,0.05504556,87166.0,87154.0,0.00576]
[1766119889833,0.12383,87164.0,87154.0,0.00576]
[1766119890133,0.01147302,87161.0,87149.0,0.23962]
[1766119890332,0.12383,87161.0,87150.0,0.00576]
[1766119890646,0.12383,87161.0,87151.0,0.11587]
[1766119891152,0.12383,87161.0,87150.0,0.12951]
[1766119891356,4.184e-05,87164.0,87155.0,0.11587]
[1766119891529,4.184e-05,87164.0,87159.0,0.12375]
[1766119891729,4.184e-05,87164.0,87159.0,0.23962]
[1766119892139,0.00576,87171.0,87160.0,0.11587]
[1766119892377,0.00576,87171.0,87162.0,0.11587]
[1766119893079,0.00576,87171.0,87161.0,0.12375]
[1766119894879,0.00576,87171.0,87161.0,0.23962]
[1766119895081,0.00576,87171.0,87157.0,0.00576]
[1766119895281,0.00576,87171.0,87158.0,0.11587]
[1766119896089,0.25047,87171.0,87158.0,0.11587]
[1766119896290,0.2684687,87171.0,87158.0,0.11587]
[1766119897057,0.2684687,87171.0,87157.0,0.12951]
[1766119897058,0.05504556,87167.0,87157.0,0.12951]
[1766119898416,0.12415,87170.0,87158.0,0.11809]
[1766119900786,0.12415,87170.0,87157.0,0.00576]
[1766119900787,0.001099,87158.0,87157.0,0.00576]
[1766119901155,0.01147249,87165.0,87157.0,0.00576]
[1766119901358,0.40864213,87167.0,87157.0,0.00576]
[1766119901359,0.24092169,87166.0,87157.0,0.00576]
[1766119901552,0.17919556,87167.0,87157.0,0.00576]
[1766119903363,0.12415,87167.0,87158.0,0.11809]
[1766119908232,0.12415,87167.0,87159.0,0.00576]
[1766119915395,0.05504556,87166.0,87159.0,0.004661]
[1766119915574,0.12415,87165.0,87159.0,0.004661]
[1766119916387,0.26270938,87170.0,87159.0,0.004661]
[1766119917170,0.12415,87169.0,87159.0,0.00576]
[1766119917709,0.12415,87168.0,87159.0,0.00576]
[1766119917908,0.24471,87166.0,87159.0,0.00576]
[1766119918054,0.12415,87160.0,87156.0,0.00576]
[1766119918256,0.24471,87158.0,87146.0,0.12956499]
[1766119918603,0.12415,87158.0,87148.0,0.23294]
[1766119918756,0.12056,87162.0,87149.0,0.23294]
[1766119918959,0.12056,87162.0,87150.0,0.11809]
[1766119919365,0.12415,87164.0,87150.0,0.23294]
[1766119919565,0.12415,87164.0,87151.0,0.11809]
[1766119919801,0.12056,87163.0,87152.0,0.00576]
[1766119920206,0.12415,87164.0,87152.0,0.00576]
[1766119920405,0.12415,87164.0,87152.0,0.2387]
[1766119920604,0.06080556,87167.0,87153.0,0.23294]
[1766119920939,0.12415,87166.0,87153.0,0.23294]
[1766119921819,0.12415,87166.0,87155.0,0.11485]
[1766119922035,0.00576,87167.0,87157.0,0.11809]
[1766119922169,0.00576,87167.0,87158.0,0.00576]
[1766119922778,0.02481829,87171.0,87159.0,0.00576]
[1766119922779,0.12415,87170.0,87159.0,0.00576]
[1766119923228,0.12415,87170.0,87159.0,0.2402]
[1766119923432,0.12415,87170.0,87160.0,0.23444]
[1766119924826,0.00576,87171.0,87160.0,0.23444]
[1766119925076,0.00576,87171.0,87161.0,0.23444]
[1766119925379,0.00576,87171.0,87159.0,0.00576]
[1766119925616,0.00576,87171.0,87160.0,0.23633]
[1766119925852,0.00576,87171.0,87160.0,0.11362]
[1766119926056,0.00576,87171.0,87161.0,0.12271]
[1766119926817,0.00576,87171.0,87163.0,0.12271]
[1766119927019,0.02481829,87179.0,87167.0,0.01147223]
[1766119927214,0.00576,87183.0,87171.0,0.001099]
[1766119927386,0.00576,87183.0,87172.0,0.23633]
[1766119928286,0.00576,87183.0,87174.0,0.11362]
[1766119928543,0.00576,87183.0,87176.0,0.23633]
[1766119928703,0.00576,87187.0,87176.0,0.11362]
[1766119928910,0.0102818,87186.0,87176.0,0.11362]
[1766119929514,0.28269788,87187.0,87176.0,0.11362]
[1766119930258,0.12448,87186.0,87176.0,0.11362]
[1766119930436,0.16076802,87186.0,87176.0,0.11362]
[1766119931043,0.01147065,87179.0,87169.0,0.11362]
[1766119931231,0.01147065,87179.0,87170.0,0.00576]
[1766119931232,0.12448,87175.0,87170.0,0.00576]
[1766119931426,0.12448,87175.0,87171.0,0.00576]
[1766119931870,0.12448,87175.0,87162.0,0.23633]
[1766119932085,0.12448,87175.0,87163.0,0.00576]
[1766119932299,0.12448,87175.0,87164.0,0.11362]
[1766119932466,0.12448,87175.0,87165.0,0.12271]
[1766119932667,0.12448,87174.0,87164.0,0.11362]
[1766119932988,0.12448,87174.0,87160.0,0.12271]
[1766119933201,0.12448,87172.0,87161.0,0.00576]
[1766119933421,0.01147183,87170.0,87161.0,0.00576]
[1766119933623,0.12764209,87168.0,87155.0,0.12271]
[1766119933759,0.12764209,87168.0,87146.0,0.01147499]
[1766119933760,0.12448,87163.0,87148.0,0.23633]
[1766119934127,0.12448,87163.0,87151.0,0.23633]
[1766119934635,0.12448,87163.0,87151.0,0.24780433]
[1766119934758,0.12448,87163.0,87152.0,0.23633]
[1766119935229,0.12448,87163.0,87152.0,0.2478042]
[1766119935367,0.12448,87163.0,87153.0,0.12271]
[1766119935574,0.12448,87163.0,87154.0,0.00576]
[1766119935994,0.00576,87171.0,87163.0,0.001099]
[1766119936458,0.00576,87171.0,87163.0,0.23633]
[1766119939969,0.00576,87171.0,87160.0,0.00576]
[1766119940872,0.00576,87171.0,87160.0,0.12847]
[1766119941614,0.0179991,87170.0,87160.0,0.12847]
[1766119942963,0.0179991,87170.0,87161.0,0.11362]
[1766119946077,0.0179991,87170.0,87162.0,0.01147288]
[1766119946276,0.0179991,87170.0,87163.0,0.01147275]
[1766119946682,0.0179991,87170.0,87164.0,0.24092477]
[1766119946822,0.0179991,87170.0,87164.0,0.01147262]
[1766119947039,0.0179991,87170.0,87163.0,0.24092723]
[1766119947237,0.0179991,87170.0,87164.0,0.01147262]
[1766119947645,0.0179991,87170.0,87163.0,0.24092723]
[1766119948093,0.0179991,87170.0,87164.0,0.24092438]
[1766119948274,0.0179991,87170.0,87165.0,0.01147249]
[1766119948678,0.0179991,87170.0,87164.0,0.24092438]
[1766119948903,0.0179991,87170.0,87165.0,0.01147249]
[1766119949046,0.0169001,87170.0,87165.0,0.01147249]
[1766119949248,1e-07,87170.0,87167.0,0.24091635]
[1766119949448,0.12448,87184.0,87173.0,0.01147144]
[1766119949781,0.00576,87187.0,87176.0,0.23633]
[1766119950775,0.00576,87188.0,87176.0,0.23633]
[1766119951186,0.001099,87176.0,87173.0,0.00576]
[1766119951594,0.12448,87183.0,87173.0,0.00576]
[1766119952825,0.00576,87188.0,87178.0,0.23633]
[1766119953263,0.12448,87193.0,87182.0,0.01147025]
[1766119953443,0.04596,87200.0,87188.0,0.001099]
[1766119953444,0.00576,87199.0,87188.0,0.001099]
[1766119953619,0.00576,87203.0,87190.0,0.0114692]
[1766119953825,0.11617,87201.0,87191.0,0.01376288]
[1766119954032,0.24065,87200.0,87189.0,0.00576]
[1766119954362,0.24065,87200.0,87194.0,0.22937358]
[1766119954598,0.00576,87220.0,87208.0,0.24080358]
[1766119954769,0.12448,87223.0,87208.0,0.24080358]
[1766119954770,0.01027234,87219.0,87210.0,0.22932972]
[1766119954974,0.12448,87223.0,87209.0,0.68475212]
[1766119955130,0.01027232,87222.0,87209.0,0.00576]
[1766119955338,0.01027232,87221.0,87209.0,0.00576]
[1766119955533,0.12292232,87221.0,87209.0,0.00576]
[1766119955736,0.01027232,87220.0,87209.0,0.12265]
[1766119955937,0.01027232,87220.0,87209.0,0.2507267]
[1766119956183,0.01027232,87220.0,87209.0,0.12237]
[1766119956382,0.11265,87220.0,87209.0,0.00576]
[1766119956738,0.11265,87216.0,87209.0,0.00576]
[1766119957584,0.11265,87214.0,87209.0,0.00576]
[1766119959570,0.12454,87213.0,87209.0,0.00576]
[1766119959794,0.11265,87212.0,87209.0,0.00576]
[1766119960172,0.12454,87219.0,87209.0,0.00576]
[1766119960373,0.11265,87218.0,87212.0,0.001099]
[1766119960622,0.11265,87218.0,87209.0,0.00576]
[1766119960623,0.11265,87217.0,87209.0,0.00576]
[1766119963564,0.23719,87217.0,87209.0,0.00576]
[1766119963794,0.11265,87216.0,87209.0,0.00576]
[1766119968497,0.01799097,87222.0,87216.0,0.001099]
[1766119968809,0.00025127,87229.0,87217.0,0.23926]
[1766119969315,0.11290127,87229.0,87217.0,0.23926]
[1766119969520,0.11301089,87229.0,87217.0,0.23926]
[1766119969763,0.11301089,87229.0,87217.0,0.12237]
[1766119969764,0.11265,87227.0,87217.0,0.12237]
[1766119969964,0.11265,87226.0,87217.0,0.00576]
[1766119970710,0.16769556,87226.0,87217.0,0.00576]
[1766119970916,0.12454,87224.0,87217.0,0.00576]
[1766119971150,0.11265,87223.0,87217.0,0.00576]
[1766119971330,0.11265,87223.0,87218.0,0.00576]
[1766119971512,0.23719,87223.0,87218.0,0.00576]
[1766119972129,0.11265,87222.0,87218.0,0.00576]
[1766119974464,0.11265,87222.0,87215.0,0.00576]
[1766119980550,0.23719,87222.0,87215.0,0.00576]
[1766119981607,0.23719,87222.0,87210.0,0.11661]
[1766119981788,0.23719,87222.0,87212.0,0.00576]
[1766119981987,0.03445814,87227.0,87214.0,0.11689]
[1766119982211,0.00036089,87229.0,87222.0,0.001099]
[1766119982433,0.00036089,87229.0,87216.0,0.11661]
[1766119982434,0.11265,87228.0,87216.0,0.11661]
[1766119982640,0.11265,87228.0,87217.0,0.00576]
[1766119983414,0.12212,87227.0,87217.0,0.00576]
[1766119984243,0.00036089,87229.0,87219.0,0.1215]
[1766119984526,0.12212,87228.0,87217.0,0.12927]
[1766119984731,0.12212,87226.0,87217.0,0.00576]
[1766119989976,0.24593,87226.0,87217.0,0.00576]
[1766119990971,0.12378,87226.0,87217.0,0.00576]
[1766119993096,0.12378,87226.0,87217.0,0.12955]
[1766119993299,0.12378,87226.0,87217.0,0.00576]
[1766119995637,0.24043,87226.0,87217.0,0.00576]
[1766119995842,0.11713,87225.0,87217.0,0.00576]
[1766119999574,0.11713,87223.0,87217.0,0.00576]
[1766119999931,0.01146591,87215.0,87201.0,0.06155594]
[1766120000062,0.11665,87214.0,87202.0,0.00576]
[1766120000250,0.11665,87216.0,87203.0,0.01146749]
[1766120000448,0.11665,87216.0,87204.0,0.01146736]
[1766120000449,0.23378,87216.0,87204.0,0.01146736]
[1766120001077,0.23378,87216.0,87205.0,0.01146723]
[1766120001385,0.02375018,87222.0,87216.0,0.001099]
[1766120001686,0.01146749,87220.0,87211.0,0.23815]
[1766120002479,0.01146749,87220.0,87211.0,0.11436]
[1766120003484,0.01146749,87220.0,87211.0,0.12012]
[1766120004065,0.12859749,87220.0,87211.0,0.00576]
[1766120004816,0.24524749,87220.0,87211.0,0.00576]
[1766120004983,0.11713,87219.0,87211.0,0.00576]
[1766120006881,0.01146749,87220.0,87219.0,0.001099]
[1766120007106,0.02375018,87222.0,87214.0,0.12379]
[1766120007333,0.01799018,87222.0,87214.0,0.13525604]
[1766120007537,8.9e-07,87229.0,87220.0,0.11436]
[1766120007867,8.9e-07,87229.0,87221.0,0.12955]
[1766120008026,8.9e-07,87229.0,87222.0,0.11436]
[1766120008991,8.9e-07,87229.0,87221.0,0.00576]
[1766120010490,8.9e-07,87229.0,87221.0,0.12955]
[1766120010693,8.9e-07,87229.0,87223.0,0.01146486]
[1766120011051,8.9e-07,87229.0,87222.0,0.12379]
[1766120011201,8.9e-07,87229.0,87228.0,0.23815]
[1766120011414,8.9e-07,87229.0,87228.0,0.47319417]
[1766120011571,8.9e-07,87229.0,87228.0,0.24391]
[1766120015534,8.9e-07,87229.0,87228.0,0.47319417]
[1766120015879,8.9e-07,87229.0,87228.0,0.24391]
[1766120016299,8.9e-07,87229.0,87228.0,0.47319417]
[1766120020244,0.0004,87240.0,87234.0,0.3446178]
[1766120020445,0.0004,87240.0,87235.0,0.25643328]
[1766120020645,0.0004,87244.0,87236.0,0.36982982]
[1766120020819,0.0004,87244.0,87236.0,0.35607404]
[1766120021031,0.0004,87244.0,87237.0,0.01146302]
[1766120021276,0.0004,87244.0,87236.0,0.11535]
[1766120021482,0.0004,87244.0,87236.0,0.01146315]
[1766120021788,0.0004,87244.0,87235.0,0.37034882]
[1766120021908,0.0004,87244.0,87235.0,0.14108328]
[1766120022358,0.11297736,87245.0,87235.0,0.12962]
[1766120022730,0.11297736,87245.0,87235.0,0.14108328]
[1766120023705,0.11297736,87245.0,87235.0,0.37034789]
[1766120024026,0.11297736,87245.0,87238.0,0.22925789]
[1766120024195,0.11297736,87245.0,87239.0,0.22925454]
[1766120024392,0.11297736,87245.0,87237.0,0.01146302]
[1766120024393,0.11297736,87245.0,87237.0,0.24072345]
[1766120024691,0.11297736,87245.0,87239.0,0.01146276]
[1766120025177,0.0004,87247.0,87239.0,0.24071283]
[1766120026522,0.0004,87247.0,87240.0,0.23921]
[1766120026711,0.0004,87247.0,87240.0,0.24497]
[1766120026890,0.0004,87248.0,87240.0,0.01722263]
[1766120027058,0.0004,87248.0,87241.0,0.24071021]
[1766120027258,0.00040857,87242.0,87240.0,0.01722263]
[1766120027475,0.0004,87248.0,87240.0,0.00576]
[1766120027716,0.11323,87245.0,87240.0,0.00576]
[1766120027944,0.11323,87245.0,87228.0,0.36460837]
[1766120027945,0.22925263,87240.0,87219.0,0.04592]
[1766120028176,0.22925263,87240.0,87199.0,0.10284465]
[1766120028177,0.11323,87219.0,87204.0,0.11535]
[1766120028417,0.11323,87219.0,87200.0,0.67813066]
[1766120028418,0.11323,87213.0,87198.0,0.23921]
[1766120028627,0.11323,87211.0,87199.0,0.00576]
[1766120028872,0.11323,87211.0,87194.0,0.03445936]
[1766120028873,0.11323,87207.0,87194.0,0.03445936]
[1766120029079,0.11323,87206.0,87195.0,0.00576]
[1766120029690,0.05504556,87211.0,87192.0,0.12386]
[1766120029881,0.05504556,87211.0,87194.0,0.00576]
[1766120030535,0.23242,87210.0,87194.0,0.00576]
[1766120030676,0.11919,87206.0,87194.0,0.00576]
[1766120030872,0.11323,87205.0,87194.0,0.00576]
[1766120031726,0.11919,87204.0,87194.0,0.00576]
[1766120031960,0.11323,87200.0,87182.0,0.23921]
[1766120032127,0.11323,87196.0,87183.0,0.00576]
[1766120032327,0.11323,87196.0,87183.0,0.01723012]
[1766120032505,0.11323,87196.0,87183.0,0.13258012]
[1766120032688,0.11323,87196.0,87184.0,0.01146999]
[1766120032892,0.11323,87196.0,87184.0,0.12681999]
[1766120033093,0.11323,87196.0,87184.0,0.11535]
[1766120033492,0.11323,87196.0,87183.0,0.14109012]
[1766120033493,0.11323,87196.0,87186.0,0.01146973]
[1766120033693,0.11323,87196.0,87187.0,0.01146959]
[1766120033922,0.11323,87196.0,87186.0,0.35621326]
[1766120033923,0.11323,87196.0,87186.0,0.11535]
[1766120034093,0.11323,87196.0,87187.0,0.00576]
[1766120038036,0.11323,87196.0,87186.0,0.11535]
[1766120038223,0.11323,87196.0,87187.0,0.00576]
[1766120038424,0.11323,87196.0,87186.0,0.11535]
[1766120038645,0.11323,87196.0,87187.0,0.00576]
[1766120039061,0.00576,87200.0,87187.0,0.00576]
[1766120039062,0.23818,87200.0,87187.0,0.00576]
[1766120039260,0.23818,87200.0,87188.0,0.01146946]
[1766120039665,0.004661,87200.0,87191.0,0.11535]
[1766120041081,0.004661,87200.0,87191.0,0.12681907]
[1766120041293,0.004661,87200.0,87192.0,0.01146894]
[1766120041625,0.004661,87200.0,87193.0,0.12681881]
[1766120041778,0.00576,87203.0,87197.0,0.24083356]
[1766120041978,0.11333946,87219.0,87207.0,0.11535]
[1766120042180,0.00576,87214.0,87207.0,0.11535]
[1766120043470,0.00576,87214.0,87202.0,0.12064]
[1766120044922,0.00576,87214.0,87202.0,0.13210762]
[1766120045150,0.00576,87214.0,87202.0,0.12064]
[1766120045356,0.00576,87214.0,87202.0,0.13210762]
[1766120046242,0.00576,87214.0,87206.0,0.12178]
[1766120047227,0.00576,87214.0,87205.0,0.1142]
[1766120048005,0.00576,87214.0,87201.0,0.12754]
[1766120048358,0.00576,87214.0,87201.0,0.36078278]